fUSD/lending_fUSD_20260605
["ID","MTS","AMOUNT","RATE_DAILY","PERIOD"]
[424149455,1780612251000,-500.0,0.00030137,3]
[424149464,1780612251000,-165.25,0.00030137,2]
[424149484,1780612251000,-930.00000002,0.00030137,120]
[424149454,1780612251000,-500.0,0.00030137,3]
[424149450,1780612251000,-389.20230715,0.00030137,2]
[424149449,1780612251000,-194.60115358,0.00030137,2]
[424149451,1780612251000,-583.80346073,0.00030137,2]
[424149452,1780612251000,-281.23,0.00030137,2]
[424149453,1780612251000,-500.0,0.00030137,3]
[424149456,1780612251000,-500.0,0.00030137,3]
[424149457,1780612251000,-150.0,0.00030137,2]
[424149458,1780612251000,-500.0,0.00030137,3]
[424149459,1780612251000,-500.0,0.00030137,3]
[424149460,1780612251000,-500.0,0.00030137,3]
[424149462,1780612251000,-165.25,0.00030137,2]
[424149463,1780612251000,-165.25,0.00030137,2]
[424149461,1780612251000,-500.0,0.00030137,3]
[424149467,1780612251000,-1500.0,0.00030137,15]
[424149466,1780612251000,-206.2,0.00030137,2]
[424149465,1780612251000,-154.79996153,0.00030137,30]
[424149485,1780612251000,-13263.49,0.00030137,7]
[424149486,1780612251000,-729.35,0.00030153,120]
[424149489,1780612251000,-252.06,0.000302,2]
[424149510,1780612251000,-1934.0,0.0003038,30]
[424149506,1780612251000,-507.0,0.00030379,30]
[424149509,1780612251000,-1633.0,0.00030379,30]
[424149514,1780612251000,-443.0,0.0003038,30]
[424149515,1780612251000,-377.0,0.0003038,30]
[424149525,1780612251000,-200.0,0.00030437,2]
[424149518,1780612251000,-575.56,0.000304,14]
[424149513,1780612251000,-2842.0,0.0003038,30]
[424149516,1780612251000,-2393.0,0.0003038,30]
[424149520,1780612251000,-557.0,0.00030401,30]
[424149522,1780612251000,-332.0,0.00030401,30]
[424149524,1780612251000,-350.0,0.00030434,16]
[424149519,1780612251000,-1179.31,0.000304,7]
[424149523,1780612251000,-178.9,0.00030411,120]
[424149526,1780612251000,-200.0,0.00030437,2]
[424149488,1780612251000,-411.0,0.000302,2]
[424149521,1780612251000,-995.0,0.00030401,30]
[424149508,1780612251000,-269.0,0.00030379,30]
[424149517,1780612251000,-1334.52,0.00030384,7]
[424149504,1780612251000,-350.0,0.0003036,2]
[424149505,1780612251000,-336.0,0.0003036,2]
[424149494,1780612251000,-200.22,0.00030236,30]
[424149493,1780612251000,-200.22,0.00030236,30]
[424149491,1780612251000,-1334.52,0.0003023,7]
[424149496,1780612251000,-200.22,0.00030236,30]
[424149497,1780612251000,-3745.4,0.00030239,2]
[424149495,1780612251000,-200.22,0.00030236,30]
[424149498,1780612251000,-1707.67,0.000303,7]
[424149490,1780612251000,-15814.82281071,0.000302,2]
[424149492,1780612251000,-400.43,0.00030236,30]
[424149501,1780612251000,-258.0,0.00030319,2]
[424149503,1780612251000,-350.0,0.0003036,2]
[424149499,1780612251000,-315.0,0.000303,2]
[424149500,1780612251000,-150.0,0.00030319,2]
[424149511,1780612251000,-654.0,0.0003038,30]
[424149512,1780612251000,-387.0,0.0003038,30]
[424149502,1780612251000,-150.0,0.00030333,22]
[424149507,1780612251000,-761.0,0.00030379,30]
[424149563,1780612252000,-367.38709948,0.00030539,2]
[424149558,1780612252000,-653.64743524,0.00030539,2]
[424149561,1780612252000,-431.89152006,0.00030539,2]
[424149560,1780612252000,-414.00286046,0.00030539,2]
[424149553,1780612252000,-778.40461431,0.00030539,2]
[424149557,1780612252000,-370.92585577,0.00030539,2]
[424149554,1780612252000,-364.0367666,0.00030539,2]
[424149573,1780612252000,-157.50109676,0.00030539,2]
[424149559,1780612252000,-645.25305355,0.00030539,2]
[424149556,1780612252000,-154.40514762,0.00030539,2]
[424149572,1780612252000,-159.83403232,0.00030539,2]
[424149565,1780612252000,-555.34353453,0.00030539,2]
[424149571,1780612252000,-656.93971706,0.00030539,2]
[424149570,1780612252000,-415.20961672,0.00030539,2]
[424149567,1780612252000,-336.43652496,0.00030539,2]
[424149566,1780612252000,-425.61616874,0.00030539,2]
[424149568,1780612252000,-428.23707371,0.00030539,2]
[424149569,1780612252000,-650.63695283,0.00030539,2]
[424149574,1780612252000,-711.71938808,0.00030539,2]
[424149576,1780612252000,-151.46468938,0.00030539,2]
[424149555,1780612252000,-399.97725993,0.00030539,2]
[424149562,1780612252000,-581.63878933,0.00030539,2]
[424149552,1780612252000,-240.72063828,0.00030539,2]
[424149532,1780612252000,-398.2888122,0.00030534,2]
[424149544,1780612252000,-329.11110173,0.00030539,2]
[424149529,1780612252000,-382.58240841,0.00030534,2]
[424149528,1780612252000,-200.0,0.00030437,2]
[424149530,1780612252000,-196.48884048,0.00030534,2]
[424149527,1780612252000,-200.0,0.00030437,2]
[424149531,1780612252000,-335.94333615,0.00030534,2]
[424149534,1780612252000,-254.69439374,0.00030534,2]
[424149579,1780612252000,-427.77189756,0.00030539,2]
[424149536,1780612252000,-238.82427377,0.00030534,2]
[424149538,1780612252000,-1354.0,0.00030535,2]
[424149535,1780612252000,-350.7169953,0.00030534,2]
[424149537,1780612252000,-283.29765806,0.00030534,2]
[424149533,1780612252000,-185.62484082,0.00030534,2]
[424149540,1780612252000,-1334.52,0.00030537,7]
[424149546,1780612252000,-452.28205859,0.00030539,2]
[424149547,1780612252000,-200.91472526,0.00030539,2]
[424149549,1780612252000,-394.85989273,0.00030539,2]
[424149550,1780612252000,-154.67999322,0.00030539,2]
[424149548,1780612252000,-432.75706051,0.00030539,2]
[424149551,1780612252000,-416.78221074,0.00030539,2]
[424149539,1780612252000,-1354.0,0.00030535,2]
[424149542,1780612252000,-466.32026634,0.00030538,2]
[424149541,1780612252000,-2287.75,0.00030537,7]
[424149543,1780612252000,-476.81022896,0.00030539,2]
[424149545,1780612252000,-396.34783679,0.00030539,2]
[424149577,1780612252000,-436.30202957,0.00030539,2]
[424149564,1780612252000,-413.78986884,0.00030539,2]
[424149583,1780612252000,-514.93560062,0.00030539,2]
[424149609,1780612252000,-317.19127502,0.00030565,2]
[424149610,1780612252000,-598.3235842,0.00030565,2]
[424149608,1780612252000,-457.84533819,0.00030565,2]
[424149605,1780612252000,-599.59856992,0.00030565,2]
[424149611,1780612252000,-653.25195079,0.00030565,2]
[424149614,1780612252000,-199.41427773,0.00030565,2]
[424149616,1780612252000,-573.97,0.00030691,7]
[424149612,1780612252000,-633.13677766,0.00030565,2]
[424149615,1780612252000,-473.32101168,0.00030582,2]
[424149613,1780612252000,-162.62779764,0.00030565,2]
[424149607,1780612252000,-340.81357991,0.00030565,2]
[424149617,1780612252000,-1334.52,0.00030691,7]
[424149621,1780612252000,-150.0,0.00030753,2]
[424149624,1780612252000,-1638.39671014,0.0003084,2]
[424149620,1780612252000,-200.0,0.00030742,2]
[424149623,1780612252000,-620.51,0.000308,7]
[424149625,1780612252000,-213.60267404,0.00030846,3]
[424149627,1780612252000,-1707.67,0.00031,7]
[424149626,1780612252000,-154.79996153,0.00030868,30]
[424149628,1780612252000,-351.06178859,0.00031,5]
[424149622,1780612252000,-172.0,0.00030757,120]
[424149578,1780612252000,-751.55309606,0.00030539,2]
[424149618,1780612252000,-200.0,0.00030742,2]
[424149606,1780612252000,-523.16074405,0.00030565,2]
[424149619,1780612252000,-200.0,0.00030742,2]
[424149598,1780612252000,-317.78950456,0.00030541,2]
[424149584,1780612252000,-801.04602934,0.00030539,2]
[424149604,1780612252000,-630.78424474,0.0003056,2]
[424149580,1780612252000,-551.01037226,0.00030539,2]
[424149581,1780612252000,-571.45421086,0.00030539,2]
[424149575,1780612252000,-489.47358659,0.00030539,2]
[424149582,1780612252000,-584.8261476,0.00030539,2]
[424149585,1780612252000,-736.73037196,0.00030539,2]
[424149592,1780612252000,-167.95583231,0.00030541,2]
[424149589,1780612252000,-647.48269011,0.00030541,2]
[424149591,1780612252000,-297.42160564,0.00030541,2]
[424149596,1780612252000,-150.83989396,0.00030541,2]
[424149586,1780612252000,-863.21534854,0.00030541,2]
[424149588,1780612252000,-255.62735591,0.00030541,2]
[424149603,1780612252000,-380.82012222,0.00030542,2]
[424149590,1780612252000,-201.67035082,0.00030541,2]
[424149601,1780612252000,-373.3911901,0.00030542,2]
[424149600,1780612252000,-565.61783199,0.00030541,2]
[424149597,1780612252000,-154.40952418,0.00030541,2]
[424149599,1780612252000,-383.09573168,0.00030541,2]
[424149595,1780612252000,-590.77570088,0.00030541,2]
[424149594,1780612252000,-329.84787218,0.00030541,2]
[424149593,1780612252000,-413.24535916,0.00030541,2]
[424149587,1780612252000,-665.98815108,0.00030541,2]
[424149602,1780612252000,-653.66455712,0.00030542,2]
[424149669,1780612253000,-200.0,0.0003136,2]
[424149680,1780612253000,-377.0,0.0003138,30]
[424149668,1780612253000,-200.0,0.0003136,2]
[424149673,1780612253000,-269.0,0.00031379,30]
[424149679,1780612253000,-443.0,0.0003138,30]
[424149671,1780612253000,-507.0,0.00031379,30]
[424149667,1780612253000,-982.0,0.00031337,2]
[424149666,1780612253000,-575.56,0.000313,14]
[424149664,1780612253000,-150.0,0.00031239,2]
[424149663,1780612253000,-150.0,0.00031239,2]
[424149672,1780612253000,-761.0,0.00031379,30]
[424149661,1780612253000,-150.0,0.00031239,2]
[424149665,1780612253000,-150.0,0.00031239,2]
[424149675,1780612253000,-1934.0,0.0003138,30]
[424149684,1780612253000,-995.0,0.00031401,30]
[424149670,1780612253000,-200.0,0.0003136,2]
[424149674,1780612253000,-1633.0,0.00031379,30]
[424149676,1780612253000,-654.0,0.0003138,30]
[424149677,1780612253000,-387.0,0.0003138,30]
[424149682,1780612253000,-2000.0,0.000314,2]
[424149681,1780612253000,-2393.0,0.0003138,30]
[424149685,1780612253000,-332.0,0.00031401,30]
[424149692,1780612253000,-154.79996153,0.00031598,30]
[424149683,1780612253000,-557.0,0.00031401,30]
[424149686,1780612253000,-2365.42764154,0.0003143,4]
[424149687,1780612253000,-499.99,0.00031453,120]
[424149688,1780612253000,-200.9725164,0.000315,2]
[424149655,1780612253000,-1000.0,0.000312,7]
[424149678,1780612253000,-2842.0,0.0003138,30]
[424149660,1780612253000,-150.0,0.00031239,2]
[424149637,1780612253000,-200.0,0.00031049,2]
[424149659,1780612253000,-150.0,0.00031239,2]
[424149689,1780612253000,-150.0,0.000315,2]
[424149631,1780612253000,-150.0,0.00031011,2]
[424149629,1780612253000,-8587.81315971,0.00031,2]
[424149633,1780612253000,-525.0,0.00031039,2]
[424149634,1780612253000,-1226.0,0.00031039,2]
[424149632,1780612253000,-1273.0,0.00031039,2]
[424149636,1780612253000,-200.0,0.00031049,2]
[424149638,1780612253000,-2173.0,0.00031072,5]
[424149639,1780612253000,-3527.0,0.00031072,5]
[424149635,1780612253000,-200.0,0.00031049,2]
[424149640,1780612253000,-1179.31,0.000311,7]
[424149630,1780612253000,-1069.11,0.00031,30]
[424149641,1780612253000,-806.56631694,0.0003112,2]
[424149643,1780612253000,-821.17464632,0.0003112,2]
[424149652,1780612253000,-160.0,0.000312,4]
[424149654,1780612253000,-160.0,0.000312,4]
[424149653,1780612253000,-160.0,0.000312,4]
[424149642,1780612253000,-813.29619104,0.0003112,2]
[424149648,1780612253000,-816.56493849,0.00031147,2]
[424149644,1780612253000,-889.6492351,0.0003112,2]
[424149650,1780612253000,-1363.0,0.0003115,2]
[424149646,1780612253000,-817.0806964,0.00031123,2]
[424149645,1780612253000,-832.48518885,0.00031123,2]
[424149649,1780612253000,-791.42097208,0.00031147,2]
[424149647,1780612253000,-150.0,0.00031146,2]
[424149651,1780612253000,-152.0,0.00031178,4]
[424149656,1780612253000,-150.0,0.00031235,2]
[424149658,1780612253000,-150.0,0.00031239,2]
[424149657,1780612253000,-150.0,0.00031239,2]
[424149662,1780612253000,-150.0,0.00031239,2]
[424149690,1780612253000,-2000.0,0.000315,2]
[424149697,1780612253000,-1547.0,0.00031641,7]
[424149694,1780612253000,-1547.0,0.00031641,7]
[424149727,1780612253000,-2855.65,0.00031832,2]
[424149724,1780612253000,-1707.67,0.000318,7]
[424149721,1780612253000,-150.0,0.00031644,2]
[424149722,1780612253000,-150.0,0.00031753,2]
[424149725,1780612253000,-245.968,0.00031817,30]
[424149732,1780612253000,-1179.31,0.00032,7]
[424149734,1780612253000,-1763.72197685,0.00032,2]
[424149735,1780612253000,-41436.47556669,0.00032,10]
[424149737,1780612253000,-151.0,0.00032,7]
[424149736,1780612253000,-151.0,0.00032,7]
[424149740,1780612253000,-308.147385,0.00032,7]
[424149744,1780612253000,-308.147385,0.00032,7]
[424149739,1780612253000,-308.147385,0.00032,7]
[424149726,1780612253000,-4035.658,0.00031817,30]
[424149742,1780612253000,-308.147385,0.00032,7]
[424149738,1780612253000,-151.0,0.00032,7]
[424149743,1780612253000,-151.0,0.00032,7]
[424149741,1780612253000,-151.0,0.00032,7]
[424149746,1780612253000,-215.73365239,0.00032,30]
[424149745,1780612253000,-297.446509,0.00032,7]
[424149749,1780612253000,-980.49683568,0.00032019,2]
[424149748,1780612253000,-949.7051665,0.00032019,2]
[424149753,1780612253000,-169.57,0.00032193,3]
[424149750,1780612253000,-1190.55,0.00032111,120]
[424149752,1780612253000,-321.85,0.00032192,2]
[424149747,1780612253000,-979.87792619,0.00032019,2]
[424149755,1780612253000,-169.57,0.00032193,3]
[424149751,1780612253000,-542.923,0.00032146,30]
[424149733,1780612253000,-537076.36801585,0.00032,120]
[424149723,1780612253000,-500.0,0.00031753,2]
[424149691,1780612253000,-250.99567423,0.00031507,30]
[424149728,1780612253000,-656.09076806,0.00031882,2]
[424149720,1780612253000,-295.74121978,0.00031641,7]
[424149695,1780612253000,-1547.0,0.00031641,7]
[424149696,1780612253000,-1547.0,0.00031641,7]
[424149693,1780612253000,-1547.0,0.00031614,7]
[424149754,1780612253000,-169.57,0.00032193,3]
[424149699,1780612253000,-1547.0,0.00031641,7]
[424149701,1780612253000,-1547.0,0.00031641,7]
[424149704,1780612253000,-1547.0,0.00031641,7]
[424149703,1780612253000,-1547.0,0.00031641,7]
[424149700,1780612253000,-1547.0,0.00031641,7]
[424149702,1780612253000,-1547.0,0.00031641,7]
[424149705,1780612253000,-154.11024229,0.00031641,7]
[424149707,1780612253000,-152.0,0.00031641,7]
[424149706,1780612253000,-152.0,0.00031641,7]
[424149698,1780612253000,-1547.0,0.00031641,7]
[424149709,1780612253000,-152.0,0.00031641,7]
[424149717,1780612253000,-153.0,0.00031641,7]
[424149730,1780612253000,-1069.71485224,0.00031992,2]
[424149729,1780612253000,-13263.49,0.00031965,14]
[424149731,1780612253000,-985.40957559,0.00031992,2]
[424149716,1780612253000,-153.0,0.00031641,7]
[424149715,1780612253000,-153.0,0.00031641,7]
[424149719,1780612253000,-153.0,0.00031641,7]
[424149708,1780612253000,-152.0,0.00031641,7]
[424149713,1780612253000,-153.0,0.00031641,7]
[424149718,1780612253000,-153.0,0.00031641,7]
[424149714,1780612253000,-153.0,0.00031641,7]
[424149711,1780612253000,-152.0,0.00031641,7]
[424149710,1780612253000,-152.0,0.00031641,7]
[424149712,1780612253000,-302.89798873,0.00031641,7]
[424149780,1780612254000,-575.56,0.000324,14]
[424149795,1780612254000,-1000.0,0.000327,120]
[424149776,1780612254000,-2842.0,0.0003238,30]
[424149777,1780612254000,-443.0,0.0003238,30]
[424149781,1780612254000,-557.0,0.00032401,30]
[424149778,1780612254000,-377.0,0.0003238,30]
[424149784,1780612254000,-500.0,0.0003242,30]
[424149785,1780612254000,-500.0,0.0003242,30]
[424149786,1780612254000,-1000.0,0.00032422,2]
[424149790,1780612254000,-155.0,0.00032441,2]
[424149794,1780612254000,-350.0,0.00032642,25]
[424149787,1780612254000,-999.99999999,0.00032422,2]
[424149791,1780612254000,-620.51,0.000325,7]
[424149789,1780612254000,-268.0,0.00032441,2]
[424149788,1780612254000,-155.0,0.00032441,2]
[424149792,1780612254000,-1707.67,0.000325,7]
[424149797,1780612254000,-151.0,0.00032877,7]
[424149798,1780612254000,-1000.0,0.00032877,120]
[424149775,1780612254000,-387.0,0.0003238,30]
[424149793,1780612254000,-150.0,0.00032562,2]
[424149774,1780612254000,-654.0,0.0003238,30]
[424149770,1780612254000,-761.0,0.00032379,30]
[424149773,1780612254000,-1934.0,0.0003238,30]
[424149757,1780612254000,-160.0,0.000322,7]
[424149756,1780612254000,-160.0,0.000322,8]
[424149760,1780612254000,-151.0,0.00032216,7]
[424149758,1780612254000,-160.0,0.000322,7]
[424149759,1780612254000,-3745.4,0.0003221,5]
[424149761,1780612254000,-13616.0,0.0003224,2]
[424149799,1780612254000,-500.6324604,0.00032877,2]
[424149769,1780612254000,-507.0,0.00032379,30]
[424149762,1780612254000,-151.0,0.00032307,7]
[424149764,1780612254000,-581.14,0.00032309,7]
[424149767,1780612254000,-581.18820006,0.00032309,7]
[424149766,1780612254000,-581.14,0.00032309,7]
[424149765,1780612254000,-581.14,0.00032309,7]
[424149763,1780612254000,-581.14,0.00032309,7]
[424149768,1780612254000,-154.79996153,0.00032329,30]
[424149772,1780612254000,-1633.0,0.00032379,30]
[424149782,1780612254000,-995.0,0.00032401,30]
[424149783,1780612254000,-332.0,0.00032401,30]
[424149771,1780612254000,-269.0,0.00032379,30]
[424149779,1780612254000,-2393.0,0.0003238,30]
[424149808,1780612254000,-571.96819715,0.00033123,120]
[424149803,1780612254000,-4141.0,0.00033,3]
[424149796,1780612254000,-1179.31,0.000328,7]
[424149832,1780612254000,-557.0,0.00033401,30]
[424149827,1780612254000,-387.0,0.0003338,30]
[424149828,1780612254000,-2842.0,0.0003338,30]
[424149826,1780612254000,-654.0,0.0003338,30]
[424149824,1780612254000,-1633.0,0.00033379,30]
[424149829,1780612254000,-443.0,0.0003338,30]
[424149831,1780612254000,-2393.0,0.0003338,30]
[424149830,1780612254000,-377.0,0.0003338,30]
[424149822,1780612254000,-761.0,0.00033379,30]
[424149807,1780612254000,-1357.0,0.00033088,2]
[424149835,1780612254000,-1179.31,0.000335,30]
[424149837,1780612254000,-500.0,0.00033553,120]
[424149838,1780612254000,-500.0,0.00033568,14]
[424149840,1780612254000,-13263.49,0.00033674,30]
[424149843,1780612254000,-150.0,0.00033753,2]
[424149844,1780612254000,-107148.10199517,0.00033781,7]
[424149839,1780612254000,-575.56,0.000336,14]
[424149842,1780612254000,-671.53646064,0.00033751,2]
[424149841,1780612254000,-2000.0,0.000337,7]
[424149825,1780612254000,-1934.0,0.0003338,30]
[424149834,1780612254000,-332.0,0.00033401,30]
[424149836,1780612254000,-500.0,0.00033553,120]
[424149823,1780612254000,-269.0,0.00033379,30]
[424149833,1780612254000,-995.0,0.00033401,30]
[424149801,1780612254000,-274.05,0.000329,120]
[424149800,1780612254000,-656.09076806,0.00032882,2]
[424149804,1780612254000,-258.54877676,0.00033,120]
[424149802,1780612254000,-278.42,0.0003294,30]
[424149806,1780612254000,-154.79996153,0.00033059,30]
[424149809,1780612254000,-477.56845309,0.00033123,120]
[424149811,1780612254000,-160.0,0.000332,11]
[424149812,1780612254000,-160.0,0.000332,9]
[424149805,1780612254000,-215.73365239,0.00033,3]
[424149815,1780612254000,-500.0,0.0003326,2]
[424149821,1780612254000,-507.0,0.00033379,30]
[424149810,1780612254000,-200.0,0.00033186,10]
[424149814,1780612254000,-1707.67,0.000332,30]
[424149818,1780612254000,-1149.64450485,0.000333,2]
[424149816,1780612254000,-1125.43472215,0.000333,2]
[424149820,1780612254000,-1107.98936091,0.00033328,2]
[424149813,1780612254000,-160.0,0.000332,9]
[424149819,1780612254000,-1143.19091389,0.00033328,2]
[424149817,1780612254000,-1138.61466745,0.000333,2]
[424149863,1780612255000,-150.0,0.00034235,2]
[424149861,1780612255000,-160.0,0.000342,11]
[424149857,1780612255000,-3745.4,0.00034182,7]
[424149858,1780612255000,-150.0,0.0003419,2]
[424149859,1780612255000,-205.0,0.000342,14]
[424149878,1780612255000,-955.98,0.0003429,2]
[424149877,1780612255000,-500.0,0.0003429,2]
[424149868,1780612255000,-150.0,0.00034239,2]
[424149866,1780612255000,-150.0,0.00034239,2]
[424149860,1780612255000,-160.0,0.000342,11]
[424149867,1780612255000,-150.0,0.00034239,2]
[424149864,1780612255000,-150.0,0.00034239,2]
[424149847,1780612255000,-4199.64510834,0.00033781,7]
[424149856,1780612255000,-1226.0,0.00034039,2]
[424149862,1780612255000,-630.78424474,0.00034211,2]
[424149854,1780612255000,-1273.0,0.00034039,2]
[424149852,1780612255000,-157.507623,0.00034,120]
[424149853,1780612255000,-1341.69284446,0.00034,2]
[424149846,1780612255000,-43237.42917902,0.00033781,7]
[424149851,1780612255000,-614.0,0.00033952,30]
[424149849,1780612255000,-437.39384537,0.00033882,7]
[424149848,1780612255000,-154.79996153,0.0003379,30]
[424149869,1780612255000,-150.0,0.00034239,2]
[424149845,1780612255000,-7575.57795234,0.00018474,2]
[424149865,1780612255000,-150.0,0.00034239,2]
[424149872,1780612255000,-4932.1,0.0003427,2]
[424149850,1780612255000,-353.04344751,0.00033915,2]
[424149873,1780612255000,-500.0,0.0003429,2]
[424149876,1780612255000,-500.0,0.0003429,2]
[424149896,1780612255000,-1107.63007,0.00034428,2]
[424149899,1780612255000,-279.9045709,0.00034428,2]
[424149900,1780612255000,-1235.18214925,0.00034428,2]
[424149898,1780612255000,-1191.11104074,0.00034428,2]
[424149892,1780612255000,-332.0,0.00034401,30]
[424149895,1780612255000,-1068.11,0.00034428,2]
[424149897,1780612255000,-1148.61238259,0.00034428,2]
[424149894,1780612255000,-151.0,0.00034428,2]
[424149893,1780612255000,-1030.0,0.00034428,2]
[424149889,1780612255000,-2393.0,0.0003438,30]
[424149890,1780612255000,-557.0,0.00034401,30]
[424149887,1780612255000,-443.0,0.0003438,30]
[424149881,1780612255000,-269.0,0.00034379,30]
[424149855,1780612255000,-525.0,0.00034039,2]
[424149885,1780612255000,-387.0,0.0003438,30]
[424149870,1780612255000,-1000.0,0.00034247,120]
[424149874,1780612255000,-587.11,0.0003429,2]
[424149871,1780612255000,-512.47,0.00034247,7]
[424149882,1780612255000,-1633.0,0.00034379,30]
[424149888,1780612255000,-377.0,0.0003438,30]
[424149875,1780612255000,-500.0,0.0003429,2]
[424149886,1780612255000,-2842.0,0.0003438,30]
[424149879,1780612255000,-507.0,0.00034379,30]
[424149880,1780612255000,-761.0,0.00034379,30]
[424149891,1780612255000,-995.0,0.00034401,30]
[424149884,1780612255000,-654.0,0.0003438,30]
[424149883,1780612255000,-1934.0,0.0003438,30]
[424149942,1780612256000,-151.0,0.00034483,2]
[424149927,1780612256000,-152.0,0.00034428,2]
[424149932,1780612256000,-152.0,0.00034428,2]
[424149935,1780612256000,-400.0,0.00034453,2]
[424149934,1780612256000,-258.0,0.00034429,2]
[424149936,1780612256000,-400.0,0.00034453,2]
[424149933,1780612256000,-150.0,0.00034429,2]
[424149937,1780612256000,-400.45701247,0.00034453,2]
[424149938,1780612256000,-350.0,0.00034469,2]
[424149941,1780612256000,-719.04747942,0.00034483,2]
[424149947,1780612256000,-152.0,0.00034519,5]
[424149943,1780612256000,-719.04747942,0.00034483,2]
[424149945,1780612256000,-20015.04113964,0.000345,30]
[424149944,1780612256000,-316.13,0.000345,13]
[424149924,1780612256000,-152.0,0.00034428,2]
[424149956,1780612256000,-773.24136889,0.00034593,2]
[424149950,1780612256000,-151.0,0.00034538,2]
[424149957,1780612256000,-575.56,0.000346,14]
[424149946,1780612256000,-1781.45481,0.000345,120]
[424149955,1780612256000,-151.0,0.00034593,2]
[424149948,1780612256000,-154.79996153,0.00034521,30]
[424149951,1780612256000,-745.65223615,0.00034538,2]
[424149940,1780612256000,-336.0,0.00034469,2]
[424149921,1780612256000,-1000.0,0.00034428,2]
[424149929,1780612256000,-152.0,0.00034428,2]
[424149931,1780612256000,-152.0,0.00034428,2]
[424149904,1780612256000,-174.61919141,0.00034428,2]
[424149903,1780612256000,-1328.27659266,0.00034428,2]
[424149902,1780612256000,-578.20924308,0.00034428,2]
[424149901,1780612256000,-1280.88388877,0.00034428,2]
[424149905,1780612256000,-1377.42282658,0.00034428,2]
[424149908,1780612256000,-693.39197629,0.00034428,2]
[424149909,1780612256000,-721.12765534,0.00034428,2]
[424149906,1780612256000,-743.50770149,0.00034428,2]
[424149914,1780612256000,-500.0,0.00034428,2]
[424149915,1780612256000,-693.39197629,0.00034428,2]
[424149907,1780612256000,-1428.38747117,0.00034428,2]
[424149912,1780612256000,-200.0,0.00034428,2]
[424149917,1780612256000,-1000.0,0.00034428,2]
[424149910,1780612256000,-693.39197629,0.00034428,2]
[424149911,1780612256000,-200.0,0.00034428,2]
[424149916,1780612256000,-209.40437684,0.00034428,2]
[424149913,1780612256000,-151.0,0.00034428,2]
[424149918,1780612256000,-152.0,0.00034428,2]
[424149919,1780612256000,-1000.0,0.00034428,2]
[424149920,1780612256000,-152.0,0.00034428,2]
[424149930,1780612256000,-152.0,0.00034428,2]
[424149952,1780612256000,-350.0,0.00034547,36]
[424149928,1780612256000,-152.0,0.00034428,2]
[424149923,1780612256000,-245.2315432,0.00034428,2]
[424149922,1780612256000,-152.0,0.00034428,2]
[424149925,1780612256000,-152.72135637,0.00034428,2]
[424149953,1780612256000,-729.35,0.00034592,120]
[424149926,1780612256000,-152.0,0.00034428,2]
[424149954,1780612256000,-773.24136889,0.00034593,2]
[424149985,1780612256000,-151.0,0.00034891,7]
[424149988,1780612256000,-151.0,0.000349,7]
[424149989,1780612256000,-151.0,0.000349,7]
[424149990,1780612256000,-218.668307,0.000349,7]
[424149996,1780612256000,-187.729829,0.000349,7]
[424149995,1780612256000,-187.729829,0.000349,7]
[424149993,1780612256000,-151.0,0.000349,7]
[424149994,1780612256000,-187.729829,0.000349,7]
[424149992,1780612256000,-151.0,0.000349,7]
[424149991,1780612256000,-151.0,0.000349,7]